bitfinex/quotes_ETHUSD_20241001
["timestamp","ask_amount","ask_price","bid_price","bid_amount"]
[1727781002879,1.98657713,2642.1,2641.7,0.8113]
[1727781002880,7.38347885,2642.2,2641.9,0.13075311]
[1727781003062,3.78493,2642.1,2641.9,0.13075311]
[1727781003375,3.78493,2642.1,2641.7,4.59668]
[1727781003549,3.78493,2642.1,2642.0,0.13063884]
[1727781003749,3.78493,2642.1,2641.7,4.59668]
[1727781004073,3.78493,2642.1,2641.7,0.8113]
[1727781004074,1.61212172,2642.0,2641.7,0.8113]
[1727781004286,1.61212172,2642.0,2641.8,0.13086738]
[1727781004439,1.61212172,2642.0,2641.7,0.8113]
[1727781004769,1.61212172,2642.0,2641.8,0.13086738]
[1727781005371,1.61212172,2642.0,2641.9,0.13075311]
[1727781005684,1.61212172,2642.0,2641.7,0.8113]
[1727781005990,5.39717172,2642.0,2641.8,0.13086738]
[1727781006472,5.39717172,2642.0,2641.9,0.13075311]
[1727781006778,5.39717172,2642.0,2641.7,0.8113]
[1727781007085,1.61212172,2642.0,2641.8,0.13086738]
[1727781007436,1.61212172,2642.0,2641.7,0.8113]
[1727781007638,1.61212172,2642.0,2641.8,0.13086738]
[1727781007977,1.61212172,2642.0,2641.7,0.8113]
[1727781008171,1.61212172,2642.0,2641.9,0.13075311]
[1727781008343,1.61212172,2642.0,2641.8,0.12998139]
[1727781008544,1.61212172,2642.0,2641.9,0.12986712]
[1727781008976,1.61212172,2642.0,2641.7,0.8113]
[1727781009201,1.61212172,2642.0,2641.9,0.12986712]
[1727781009352,1.61212172,2642.0,2641.8,0.12998139]
[1727781009547,1.61212172,2642.0,2641.9,0.12986712]
[1727781009981,1.61212172,2642.0,2641.7,0.8113]
[1727781010179,1.61212172,2642.0,2641.9,0.12986712]
[1727781010382,1.61212172,2642.0,2641.8,0.12998139]
[1727781010583,1.61212172,2642.0,2641.9,0.12986712]
[1727781010967,5.39713172,2642.0,2641.7,0.8113]
[1727781011294,1.61212172,2642.0,2641.8,0.12998139]
[1727781011466,1.61212172,2642.0,2641.7,0.8113]
[1727781011668,1.61212172,2642.0,2641.8,0.12998139]
[1727781011994,1.61212172,2642.0,2641.7,0.8113]
[1727781012195,1.61212172,2642.0,2641.9,0.12845239]
[1727781012353,1.61212172,2642.0,2641.8,0.12856666]
[1727781012682,1.61212172,2642.0,2641.9,0.12845239]
[1727781012986,1.61212172,2642.0,2641.7,0.8113]
[1727781013190,5.39713172,2642.0,2641.9,0.12845239]
[1727781013400,1.61212172,2642.0,2641.8,0.12856666]
[1727781013551,1.61212172,2642.0,2641.9,0.12845239]
[1727781013991,1.61212172,2642.0,2641.7,0.8113]
[1727781014288,1.61212172,2642.0,2641.8,0.12856666]
[1727781014492,5.39714172,2642.0,2641.8,0.12856666]
[1727781014657,5.39714172,2642.0,2641.9,0.12845239]
[1727781014990,5.39714172,2642.0,2641.7,0.8113]
[1727781015198,5.39714172,2642.0,2641.6,3.78549]
[1727781015380,1.61212172,2642.0,2641.8,0.12856666]
[1727781015557,1.61212172,2642.0,2641.7,3.91411094]
[1727781015757,1.61212172,2642.0,2641.9,0.12845239]
[1727781015978,1.61212172,2642.0,2641.8,0.12856666]
[1727781016184,1.61212172,2642.0,2641.7,3.78543]
[1727781016504,1.61212172,2642.0,2641.9,0.12845239]
[1727781016662,1.61212172,2642.0,2641.8,0.12856666]
[1727781016870,1.61212172,2642.0,2641.9,0.12845239]
[1727781017591,1.61212172,2642.0,2641.6,3.78545]
[1727781017801,1.61212172,2642.0,2641.9,0.12845239]
[1727781018000,5.39713172,2642.0,2641.9,0.12845239]
[1727781018182,6.15523172,2642.0,2641.9,0.12845239]
[1727781018583,6.15523172,2642.0,2641.5,4.61081]
[1727781018789,1.61212172,2641.8,2641.5,4.61081]
[1727781019288,1.61212172,2641.8,2641.5,0.8251]
[1727781020077,1.61212172,2641.8,2641.5,4.61081]
[1727781021264,1.61212172,2641.8,2641.5,0.8251]
[1727781021575,1.61212172,2641.8,2641.5,4.61081]
[1727781022706,3.78518,2641.9,2641.5,4.61081]
[1727781024308,5.77143441,2641.9,2641.5,4.61081]
[1727781024717,5.77143441,2641.9,2641.6,0.12880543]
[1727781026982,5.77336772,2641.9,2641.6,0.12880543]
[1727781028614,3.78538,2641.8,2641.6,0.12880543]
[1727781028815,5.77356772,2641.8,2641.6,0.12880543]
[1727781030718,3.78538,2641.8,2641.6,0.12880543]
[1727781031021,5.77356772,2641.8,2641.6,0.12880543]
[1727781031512,1.98818772,2641.8,2641.6,0.12880543]
[1727781031923,1.98864035,2641.8,2641.6,0.12880543]
[1727781032280,1.98864035,2641.8,2641.6,0.1676619]
[1727781032593,3.78518,2641.9,2641.8,4.54299]
[1727781032594,1.98864035,2641.9,2641.8,4.54299]
[1727781032904,1.98864035,2642.2,2641.8,4.71054974]
[1727781033101,1.98864035,2642.2,2641.9,3.78508]
[1727781033429,1.98864035,2642.3,2642.0,0.73351175]
[1727781033582,1.98864035,2642.3,2642.0,0.16729767]
[1727781036020,5.39663172,2642.4,2642.0,0.16729767]
[1727781036223,1.98753547,2642.3,2642.0,0.16729767]
[1727781037796,3.7846,2642.3,2642.0,0.16729767]
[1727781038223,5.77213547,2642.3,2642.0,0.16729767]
[1727781038385,5.77213547,2642.3,2641.8,8.32821]
[1727781038585,5.77213547,2642.3,2642.1,0.16709358]
[1727781038785,5.77213547,2642.3,2641.8,8.32821]
[1727781039087,5.77213547,2642.3,2641.8,4.54293]
[1727781039282,5.77213547,2642.3,2641.9,0.16732505]
[1727781039704,5.77213547,2642.3,2641.9,3.95244505]
[1727781040130,5.77213547,2642.3,2641.9,4.55651184]
[1727781040440,1.98753547,2642.3,2641.9,4.55651184]
[1727781040787,5.77215547,2642.3,2641.9,4.55651184]
[1727781041031,5.77215547,2642.3,2641.9,0.16732505]
[1727781041209,1.98753547,2642.3,2642.0,3.785]
[1727781041421,5.77197547,2642.4,2642.1,0.8129]
[1727781041595,1.98694201,2642.4,2642.1,0.97999358]
[1727781042329,1.98694201,2642.4,2642.1,4.76479358]
[1727781043424,7.38346373,2642.5,2642.1,4.76479358]
[1727781043639,1.98694201,2642.4,2642.2,3.7846]
[1727781043994,12.35666213,2642.7,2642.3,0.16686215]
[1727781043995,1.98694201,2642.5,2642.3,0.16686215]
[1727781044190,1.98694201,2642.6,2642.4,0.7655]
[1727781044433,1.98694201,2642.6,2642.4,4.54993]
[1727781044616,5.77087201,2642.8,2642.5,0.16663075]
[1727781045130,1.98694201,2642.7,2642.5,0.16663075]
[1727781045343,5.77087201,2642.8,2642.4,4.54993]
[1727781045691,1.98694201,2642.8,2642.4,4.54993]
[1727781045890,1.98694201,2642.8,2642.5,3.78427]
[1727781046135,1.98694201,2642.8,2642.6,3.95053277]
[1727781046286,3.18093041,2643.1,2642.6,4.72766277]
[1727781046287,1.98694201,2642.9,2642.6,4.72766277]
[1727781046489,7.38075176,2643.2,2642.6,5.28365645]
[1727781046711,1.98528004,2643.2,2642.9,0.7772]
[1727781047050,5.76844004,2643.3,2643.0,0.16593011]
[1727781047464,3.78316,2643.3,2643.0,0.16593011]
[1727781050057,4.39100176,2643.5,2643.0,0.16593011]
[1727781050278,4.39100176,2643.5,2643.0,3.94943011]
[1727781050279,0.7936,2643.5,2643.0,3.94943011]
[1727781050552,3.78279,2643.6,2643.2,0.7988]
[1727781050862,3.78271,2643.7,2643.2,0.7988]
[1727781051063,3.78279,2643.6,2643.3,0.16555944]
[1727781051366,3.78279,2643.6,2643.2,4.58208]
[1727781051530,3.78279,2643.6,2643.4,0.1653199]
[1727781051730,3.78279,2643.6,2643.2,4.58208]
[1727781051915,3.78279,2643.6,2643.3,0.16543551]
[1727781052255,3.78279,2643.6,2643.2,4.58208]
[1727781052455,3.78279,2643.6,2643.4,0.1653199]
[1727781052766,3.78279,2643.6,2643.5,0.16520429]
[1727781053251,3.78279,2643.6,2643.2,0.7988]
[1727781053453,3.78279,2643.6,2643.5,0.16520429]
[1727781053654,3.78279,2643.6,2643.2,0.7988]
[1727781053855,3.78279,2643.6,2643.5,0.16520429]
[1727781054349,3.78279,2643.6,2643.2,0.7988]
[1727781054544,3.78279,2643.6,2643.5,0.16520429]
[1727781054736,3.78279,2643.6,2643.2,1.63536]
[1727781055061,3.78279,2643.6,2643.3,0.16543551]
[1727781055436,3.78279,2643.6,2643.2,1.63536]
[1727781055617,3.78279,2643.6,2643.4,0.1653199]
[1727781055821,5.39491172,2643.6,2643.2,0.7988]
[1727781056022,5.39491172,2643.6,2643.5,0.16520429]
[1727781056217,5.39491172,2643.6,2643.2,0.7988]
[1727781056422,5.39491172,2643.6,2643.5,0.16520429]
[1727781056637,5.39491172,2643.6,2643.2,0.7988]
[1727781056832,5.39491172,2643.6,2643.5,0.16520429]
[1727781057037,5.39491172,2643.6,2643.2,0.7988]
[1727781057247,5.39491172,2643.6,2643.5,0.16520429]
[1727781057447,5.39491172,2643.6,2643.2,0.7988]
[1727781057727,5.39491172,2643.6,2643.2,1.63536]
[1727781057925,5.39491172,2643.6,2643.3,0.16543551]
[1727781058125,5.39491172,2643.6,2643.2,1.63536]
[1727781058363,5.39491172,2643.6,2643.3,0.16543551]
[1727781058865,5.39491172,2643.6,2643.2,1.63536]
[1727781059063,5.39491172,2643.6,2643.4,0.1653199]
[1727781059239,5.39491172,2643.6,2643.3,0.16543551]
[1727781059437,5.39491172,2643.6,2643.5,0.16520429]
[1727781059632,5.39491172,2643.6,2643.4,0.1653199]
[1727781059831,5.39491172,2643.6,2643.5,0.16520429]
[1727781060235,5.39491172,2643.6,2643.2,4.58209]
[1727781060424,5.39491172,2643.6,2643.5,0.16520429]
[1727781060629,5.39491172,2643.6,2643.2,4.58209]
[1727781060829,5.39491172,2643.6,2643.5,0.16520429]
[1727781061330,1.61212172,2643.6,2643.2,4.582]
[1727781061647,1.61212172,2643.6,2643.3,0.16543551]
[1727781061848,1.61212172,2643.6,2643.2,4.582]
[1727781062254,5.39493172,2643.6,2643.3,0.16543551]
[1727781062591,5.39493172,2643.6,2643.2,4.582]
[1727781062793,5.39493172,2643.6,2643.4,0.1653199]
[1727781062991,5.39493172,2643.6,2643.3,0.16543551]
[1727781063197,5.39493172,2643.6,2643.5,0.16520429]
[1727781063364,5.39493172,2643.6,2643.4,0.1653199]
[1727781063567,5.39493172,2643.6,2643.5,0.16520429]
[1727781064092,5.39493172,2643.6,2643.2,4.582]
[1727781064249,5.39493172,2643.6,2643.5,0.16520429]
[1727781064793,5.39493172,2643.6,2643.2,0.7988]
[1727781064998,4.5426,2643.5,2643.2,0.7988]
[1727781066964,3.78326,2643.3,2642.9,0.8019]
[1727781067151,1.61212172,2643.6,2642.7,24.01588]
[1727781067152,6.17462172,2643.2,2642.7,24.01588]
[1727781067356,5.39570172,2643.0,2642.7,19.43]
[1727781067564,5.39570172,2643.0,2642.6,3.78404]
[1727781067770,1.61212172,2643.0,2642.6,3.78404]
[1727781067970,1.61212172,2643.0,2642.6,7.56812]
[1727781068999,1.61212172,2643.0,2642.7,3.78398]
[1727781069899,1.61212172,2643.0,2642.8,0.16587621]
[1727781070417,1.61212172,2643.0,2642.9,0.16576055]
[1727781070894,1.61212172,2643.0,2642.7,3.78398]
[1727781071092,1.61212172,2643.0,2642.9,0.16576055]
[1727781071291,1.61212172,2643.0,2642.8,0.16587621]
[1727781071493,3.7835,2643.1,2642.9,0.16576055]
[1727781071799,5.39562172,2643.1,2642.7,3.78398]
[1727781072594,5.39562172,2643.1,2642.8,0.16587621]
[1727781073003,5.39562172,2643.1,2642.7,3.78398]
[1727781073185,5.39562172,2643.1,2642.9,0.16576055]
[1727781073377,5.39562172,2643.1,2642.8,0.16587621]
[1727781073555,5.39562172,2643.1,2643.0,0.1656449]
[1727781073752,5.39562172,2643.1,2642.7,3.78398]
[1727781073969,5.39562172,2643.1,2642.8,0.16587621]
[1727781074208,5.39562172,2643.1,2642.7,3.78398]
[1727781074399,5.39562172,2643.1,2642.9,0.16576055]
[1727781074697,5.39562172,2643.1,2642.8,0.16587621]
[1727781074993,5.39562172,2643.1,2642.9,0.16576055]
[1727781075419,5.39562172,2643.1,2642.7,3.78398]
[1727781075585,5.39562172,2643.1,2643.0,0.1656449]
[1727781075788,5.39562172,2643.1,2642.7,3.78398]
[1727781075984,5.39562172,2643.1,2643.0,0.1656449]
[1727781076218,5.39562172,2643.1,2642.7,3.78398]
[1727781076378,5.39562172,2643.1,2643.0,0.1656449]
[1727781077106,5.39562172,2643.1,2642.7,3.78398]
[1727781077669,5.39562172,2643.1,2642.8,0.16587621]
[1727781077875,5.39562172,2643.1,2642.7,3.78398]
[1727781078088,9.17916172,2643.1,2642.7,3.78398]
[1727781078286,5.39562172,2643.1,2642.8,0.16592205]
[1727781078488,5.39562172,2643.1,2642.7,3.78398]
[1727781078893,5.39562172,2643.1,2642.8,0.16592205]
[1727781079117,5.39562172,2643.1,2642.7,3.78398]
[1727781079520,9.17917172,2643.1,2642.8,0.16592205]
[1727781079693,9.17917172,2643.1,2642.6,3.78413]
[1727781079694,5.39562172,2643.1,2642.6,3.78413]
[1727781079873,5.39562172,2643.1,2642.7,3.78399]
[1727781080077,5.39562172,2643.1,2642.7,3.95002771]
[1727781085831,1.61212172,2643.1,2642.7,4.72492771]
[1727781086033,4.5626,2643.2,2642.8,3.78377]
[1727781086477,4.5626,2643.2,2642.9,0.16580639]
[1727781087348,6.54436081,2643.2,2642.9,0.16580639]
[1727781087556,4.5626,2643.2,2642.9,0.16580639]
[1727781087749,4.5626,2643.2,2642.7,4.55887]
[1727781087950,4.5626,2643.2,2642.8,0.16595939]
[1727781088171,6.54436081,2643.2,2642.7,4.55887]
[1727781088479,6.54436081,2643.2,2642.8,0.16595939]
[1727781088862,6.54436081,2643.2,2642.7,4.55887]
[1727781089038,6.54436081,2643.2,2642.9,0.16584373]
[1727781089236,6.54677362,2643.2,2642.8,0.16595939]
[1727781089438,6.54677362,2643.2,2643.0,0.16572808]
[1727781089636,5.76761362,2643.1,2642.9,0.16584373]
[1727781089884,1.98417362,2643.1,2642.7,4.5589]
[1727781090177,6.54667362,2643.2,2642.7,5.393196]
[1727781090383,3.78345,2643.1,2642.7,5.393196]
[1727781091102,5.76762362,2643.1,2642.7,5.393196]
[1727781091545,5.76762362,2643.1,2642.7,1.609196]
[1727781091884,5.76762362,2643.1,2642.7,0.7749]
[1727781094382,5.7689119,2643.1,2642.7,0.7749]
[1727781095168,3.78361,2643.0,2642.7,0.7749]
[1727781099562,3.78361,2643.0,2642.8,0.1659373]
[1727781099763,3.78361,2643.0,2642.7,0.7749]
[1727781099967,3.78361,2643.0,2642.8,0.1659373]
[1727781100378,5.76890446,2643.0,2642.7,0.7749]
[1727781100578,5.76890446,2643.0,2642.8,0.1659373]
[1727781100787,5.76890446,2643.0,2642.7,0.7749]
[1727781100956,5.76890446,2643.0,2642.8,0.1659373]
[1727781101281,5.76890446,2643.0,2642.7,0.7749]
[1727781101453,5.76890446,2643.0,2642.9,0.16582164]
[1727781101653,5.76890446,2643.0,2642.8,0.1659373]
[1727781101857,5.76890446,2643.0,2642.9,0.16580127]
[1727781102268,5.76890446,2643.0,2642.7,0.7749]
[1727781102466,5.76890446,2643.0,2642.9,0.16580127]
[1727781102653,1.98529446,2643.0,2642.8,0.16591693]
[1727781102986,1.98529446,2643.0,2642.9,0.16580127]
[1727781103176,5.76875446,2643.1,2642.7,4.5589]
[1727781103353,1.98529446,2643.0,2642.8,0.16589656]
[1727781103554,1.98529446,2643.0,2642.7,4.5589]
[1727781103754,1.98529446,2643.0,2642.8,0.16589656]
[1727781103954,1.98529446,2643.0,2642.7,4.5589]
[1727781104178,1.98529446,2643.0,2642.8,0.16589656]
[1727781104364,3.78346,2643.1,2642.7,4.5589]
[1727781104555,1.98644768,2643.0,2642.8,0.16589656]
[1727781104761,1.98644768,2643.0,2642.7,4.5589]
[1727781104961,5.77003768,2643.0,2642.8,0.16589656]
[1727781105155,5.77003768,2643.0,2642.7,0.7749]
[1727781105356,5.77003768,2643.0,2642.8,0.16589487]
[1727781105614,3.78407,2642.7,2642.3,3.78451]
[1727781105892,3.78458,2642.3,2642.0,19.43]
[1727781106055,5.39670172,2642.3,2641.9,4.60963]
[1727781106250,7.38361089,2642.3,2641.9,5.449127]
[1727781106464,1.61212172,2642.3,2641.9,5.449127]
[1727781107090,1.61212172,2642.3,2641.9,9.234197]
[1727781107289,5.39673172,2642.3,2641.9,5.449127]
[1727781107687,5.39673172,2642.3,2641.9,1.664097]
[1727781107861,6.22803172,2642.3,2641.9,0.8246]
[1727781109481,8.21378029,2642.3,2641.9,0.8246]
[1727781109795,6.22803172,2642.3,2641.9,0.8246]
[1727781110471,2.44342172,2642.3,2641.9,0.8246]
[1727781110657,2.44342172,2642.3,2641.9,4.60973]
[1727781111888,0.8313,2642.3,2641.9,4.60973]
[1727781113867,2.75804857,2642.5,2641.9,1.44678517]
[1727781114070,2.75804857,2642.5,2642.1,3.78478]
[1727781114398,4.55661,2642.5,2642.1,3.78478]
[1727781114599,4.55661,2642.5,2642.2,0.1665873]
[1727781116300,8.341,2642.5,2642.2,0.1665873]
[1727781116461,4.55661,2642.5,2642.2,0.1665873]
[1727781118300,4.55661,2642.5,2642.0,3.785]
[1727781118666,4.55661,2642.5,2642.1,3.95164999]
[1727781119104,4.55661,2642.5,2642.1,0.16680999]
[1727781119312,8.34103,2642.5,2642.1,0.16680999]
[1727781119460,8.34103,2642.5,2642.0,3.78496]
[1727781119665,8.34103,2642.5,2642.2,0.16669427]
[1727781120105,4.55661,2642.5,2642.0,3.78496]
[1727781120310,4.55661,2642.5,2642.3,0.16657856]
[1727781120479,4.55661,2642.5,2642.1,3.78486]
[1727781120685,5.76816329,2642.6,2642.4,0.16646286]
[1727781121013,3.78417,2642.6,2642.5,0.16634716]
[1727781121375,3.78417,2642.6,2642.2,4.54176]
[1727781121563,5.76795329,2642.8,2642.3,3.95104856]
[1727781121760,3.78396,2642.8,2642.4,3.78441]
[1727781121964,3.78396,2642.8,2642.5,0.16634716]
[1727781124216,3.78396,2642.8,2642.4,3.78441]
[1727781124369,3.78396,2642.8,2642.6,0.16061847]
[1727781124710,3.78396,2642.8,2642.4,3.78441]
[1727781124877,3.78396,2642.8,2642.7,0.1605028]
[1727781125079,3.78396,2642.8,2642.5,0.7998]
[1727781125285,3.78396,2642.8,2642.7,0.1605028]
[1727781125556,3.78396,2642.8,2642.6,0.16061847]
[1727781125812,3.78396,2642.8,2642.7,0.1605028]
[1727781126106,3.78396,2642.8,2642.5,0.7998]
[1727781126312,3.78396,2642.8,2642.7,0.1605028]
[1727781126470,3.78396,2642.8,2642.6,0.16061847]
[1727781126670,3.78396,2642.8,2642.7,0.1605028]
[1727781127115,3.78396,2642.8,2642.5,0.7998]
[1727781127319,3.78396,2642.8,2642.7,0.1605028]
[1727781127481,3.78396,2642.8,2642.6,0.16061847]
[1727781127682,3.78396,2642.8,2642.7,0.1605028]
[1727781128013,3.78396,2642.8,2642.5,0.7998]
[1727781128217,3.78396,2642.8,2642.6,0.16061847]
[1727781128411,0.799,2642.9,2642.6,0.16061847]
[1727781128568,3.78392,2642.8,2642.6,0.16061847]
[1727781129336,7.56788,2642.8,2642.6,0.16061847]
[1727781130435,3.78392,2642.8,2642.6,0.16061847]
[1727781130797,7.56788,2642.8,2642.6,0.16061847]
[1727781131539,3.78392,2642.8,2642.6,0.16061847]
[1727781136880,1.61212172,2643.1,2642.6,3.94470847]
[1727781136881,2.79421304,2643.1,2642.6,3.94470847]
[1727781137044,3.78359,2643.0,2642.7,0.86044738]
[1727781137500,3.78359,2643.0,2642.8,0.16045504]
[1727781137915,3.78359,2643.0,2642.7,0.86044738]
[1727781138129,3.78359,2643.0,2642.9,0.16033938]
[1727781138326,3.78359,2643.0,2642.8,0.16045504]
[1727781138536,3.78359,2643.0,2642.9,0.16033938]
[1727781138846,3.78359,2643.0,2642.7,0.86044738]
[1727781139008,3.78359,2643.0,2642.9,0.16033938]
[1727781139209,3.78359,2643.0,2642.6,3.78409]
[1727781139416,3.78359,2643.0,2642.6,4.620907]
[1727781139627,3.78359,2643.0,2642.7,0.1605707]
[1727781143707,6.57808353,2643.1,2642.7,3.9445607]
[1727781144256,6.57808353,2643.1,2642.7,0.1605707]
[1727781144433,6.57808353,2643.1,2642.7,0.71869847]
[1727781145457,6.57808353,2643.1,2642.7,4.50269847]
[1727781145809,6.57808353,2643.1,2642.7,0.71869847]
[1727781146010,8.37693,2643.1,2642.7,0.71869847]
[1727781146345,10.36162353,2643.1,2642.7,0.71869847]
[1727781146661,6.57808353,2643.1,2642.7,0.71869847]
[1727781147514,6.57804481,2643.1,2642.7,0.71869847]
[1727781147714,10.36160481,2643.1,2642.7,0.71869847]
[1727781147916,5.76814481,2643.1,2642.8,0.828]
[1727781148311,3.78363,2643.0,2642.9,0.16032238]
[1727781148713,5.76814481,2643.1,2642.9,0.16032238]
[1727781149113,9.55168481,2643.1,2642.9,0.16032238]
[1727781149340,3.78357,2643.0,2642.9,0.16032238]
[1727781149560,5.76814481,2643.1,2642.9,0.16032238]
[1727781149755,3.78357,2643.0,2642.9,0.16032238]
[1727781156050,3.78357,2643.0,2642.7,0.55812777]
[1727781156214,3.78357,2643.0,2642.9,0.16032238]
[1727781156413,3.78357,2643.0,2642.6,4.60574]
[1727781156744,3.78357,2643.0,2642.7,0.1605537]
[1727781159360,5.7694396,2643.0,2642.7,0.1605537]
[1727781159933,5.76962421,2643.0,2642.7,0.1605537]
[1727781160855,4.79308678,2643.3,2642.7,0.1605537]
[1727781160856,1.98605421,2643.1,2642.8,0.8099]
[1727781161165,1.98605421,2643.1,2642.9,0.63574488]
[1727781161321,5.76942421,2643.2,2642.9,0.63574488]
[1727781162439,1.98605421,2643.1,2642.9,0.63574488]
[1727781163161,5.76942421,2643.2,2642.9,0.63574488]
[1727781164427,1.98605421,2643.1,2642.9,0.63574488]
[1727781164626,5.76942421,2643.2,2643.0,0.52294449]
[1727781164844,5.76942421,2643.2,2643.1,0.16007922]
[1727781164845,5.77021224,2643.2,2643.1,0.16007922]
[1727781165069,1.98684224,2643.3,2643.0,0.8141]
[1727781165274,1.98684224,2643.3,2643.1,3.94337922]
[1727781165572,1.98684224,2643.4,2643.2,0.48331433]
[1727781166073,1.98684224,2643.5,2643.3,0.15978514]
[1727781166367,1.98684224,2643.6,2643.3,4.74752514]
[1727781166552,1.98684224,2643.6,2643.3,0.8046]
[1727781166758,1.98684224,2643.6,2643.4,0.15966953]
[1727781167275,5.76957224,2643.6,2643.4,0.15966953]
[1727781169152,3.78286,2643.5,2643.4,0.15966953]
[1727781173696,3.78273,2643.6,2643.4,0.15966953]
[1727781174770,7.56557,2643.6,2643.4,0.15966953]
[1727781174981,7.56554,2643.6,2643.4,0.15966953]
[1727781175142,3.78273,2643.6,2643.4,0.15966953]
[1727781178034,3.78273,2643.6,2643.4,0.15966953]
[1727781180369,5.76606683,2643.8,2643.4,0.15966953]
[1727781180370,3.7826,2643.7,2643.4,0.15966953]
[1727781181234,3.78272,2643.6,2643.4,0.15966953]
[1727781181575,3.78259,2643.7,2643.4,0.15966953]
[1727781181932,5.76598683,2643.8,2643.4,0.15966953]
[1727781182154,9.54853683,2643.8,2643.4,0.15966953]
[1727781182493,3.78263,2643.7,2643.4,0.15966953]
[1727781183189,5.76631009,2643.7,2643.4,0.15966953]
[1727781184389,1.98368009,2643.7,2643.4,0.15966953]
[1727781184592,9.54868009,2643.8,2643.4,0.15966953]
[1727781184967,3.78261,2643.7,2643.4,0.15966953]
[1727781185152,3.78267,2643.7,2643.4,0.15966953]
[1727781185557,7.56535,2643.7,2643.4,0.15966953]
[1727781185776,3.78267,2643.7,2643.4,0.15966953]
[1727781186959,7.56535,2643.7,2643.4,0.15966953]
[1727781187500,3.78267,2643.7,2643.4,0.15966953]
[1727781189300,3.7826,2643.7,2643.4,0.15966953]
[1727781189475,3.7828,2643.6,2643.4,0.15966953]
[1727781189678,3.78286,2643.5,2643.4,0.15966953]
[1727781191703,5.76614371,2643.7,2643.4,0.15966953]
[1727781192002,3.78272,2643.6,2643.4,0.15966953]
[1727781192809,3.78286,2643.5,2643.4,0.15966953]
[1727781192971,5.76611371,2643.8,2643.4,0.15966953]
[1727781192972,1.61212172,2643.7,2643.4,0.15966953]
[1727781193177,3.7828,2643.6,2643.4,0.15966953]
[1727781193433,5.76636371,2643.6,2643.1,8.38713]
[1727781193699,5.76636371,2643.6,2643.2,3.78329]
[1727781193880,5.76636371,2643.6,2643.2,3.94305498]
[1727781193881,3.7828,2643.6,2643.2,3.94305498]
[1727781194689,1.98356371,2643.7,2643.3,3.78307]
[1727781194922,1.98356371,2643.7,2643.4,0.95783374]
[1727781195208,3.7826,2643.7,2643.4,0.95783374]
[1727781196208,5.76606371,2643.8,2643.4,5.21487411]
[1727781196369,5.76606371,2643.8,2643.4,0.95783374]
[1727781196964,5.76606371,2643.8,2643.4,4.74082374]
[1727781200415,1.98356371,2643.7,2643.4,4.74082374]
[1727781200584,1.98356371,2643.7,2643.5,0.85238937]
[1727781201039,1.98356371,2643.7,2643.6,0.15928727]
[1727781202742,1.98569551,2643.7,2643.6,0.15928727]
[1727781207452,3.7825,2643.8,2643.6,0.15928727]
[1727781207616,3.7825,2643.8,2643.4,4.58129]
[1727781207813,3.7825,2643.8,2643.4,5.417726]
[1727781208058,1.9869359,2643.6,2643.4,5.417726]
[1727781208263,1.9869359,2643.6,2643.5,0.15940287]
[1727781211376,6.16533462,2643.8,2643.5,0.15940287]
[1727781212671,6.16882372,2643.8,2643.5,0.15940287]
[1727781217829,6.16901403,2643.8,2643.5,0.15940287]
[1727781218196,2.38651403,2643.7,2643.5,0.15940287]
[1727781219388,2.38665357,2643.7,2643.5,0.15940287]
[1727781219691,3.7825,2643.8,2643.5,0.15940287]
[1727781220547,2.38665269,2643.7,2643.5,0.15940287]
[1727781220747,2.38665269,2643.8,2643.5,1.09542276]
[1727781221063,2.38665269,2643.8,2643.5,0.15940287]
[1727781223812,2.3867529,2643.8,2643.5,0.15940287]
[1727781224348,6.1692529,2643.8,2643.5,0.15940287]
[1727781226331,5.39484172,2643.6,2643.5,0.15940287]
[1727781226528,7.78159462,2643.6,2643.5,0.15940287]
[1727781226759,5.39484172,2643.6,2643.2,0.7754]
[1727781226959,1.98911628,2643.3,2643.2,0.7754]
[1727781227325,1.98911628,2643.3,2643.1,3.78335]
[1727781227526,1.98911628,2643.3,2642.9,4.59723]
[1727781227846,1.98911628,2643.3,2643.0,4.984233]
[1727781228456,1.98911628,2643.3,2643.1,3.7834]
[1727781228870,1.98875866,2643.3,2643.1,3.7834]
[1727781229856,1.98875866,2643.3,2643.0,4.984233]
[1727781230557,1.98875866,2643.3,2643.0,7.567]
[1727781230762,1.98875866,2643.3,2643.0,3.78349]
[1727781230948,1.98875866,2643.3,2643.0,7.56699]
[1727781231377,1.98875866,2643.3,2643.0,3.78349]
[1727781231682,1.98875866,2643.3,2643.0,3.78357]
[1727781231831,1.98875866,2643.3,2643.1,0.459717]
[1727781232170,1.98875866,2643.3,2643.1,4.243117]
[1727781233732,1.98802265,2643.3,2643.1,4.243117]
[1727781234726,1.98802265,2643.3,2643.2,0.15972932]
[1727781235646,1.98802265,2643.3,2643.2,3.94301932]
[1727781235984,1.98802265,2643.4,2643.2,3.94301932]
[1727781238789,1.98762729,2643.4,2643.2,3.94301932]
[1727781241404,1.98762729,2643.4,2643.2,0.15972932]
[1727781242072,1.98762729,2643.3,2643.2,0.15972932]
[1727781243204,1.98762729,2643.4,2643.2,0.15972932]
[1727781247196,3.78289,2643.5,2643.2,0.15972932]
[1727781247399,1.98734622,2643.4,2643.2,0.15972932]
[1727781247893,1.98734622,2643.4,2643.1,3.78341]
[1727781248098,1.98734622,2643.4,2643.3,0.15962897]
[1727781248604,1.98734622,2643.4,2643.1,3.78341]
[1727781248764,1.98734622,2643.4,2643.3,0.15962897]
[1727781248961,1.96291424,2643.4,2643.2,0.15974459]
[1727781251290,1.96291424,2643.4,2643.1,4.621474]
[1727781251489,1.96291424,2643.4,2643.2,0.15974459]
[1727781251789,0.8059,2643.3,2643.2,0.15974459]
[1727781251989,3.78314,2643.3,2643.2,0.15974459]
[1727781252245,3.78379,2642.9,2642.5,0.8242]
[1727781252396,3.78379,2642.9,2642.4,3.78442]
[1727781252397,5.39591172,2642.9,2642.4,3.78442]
[1727781252605,5.39591172,2642.9,2642.5,0.453732]
[1727781252805,3.78399,2642.8,2642.5,0.453732]
[1727781253196,5.39584172,2642.9,2642.5,0.453732]
[1727781256033,7.38119052,2642.9,2642.5,4.238002]
[1727781256330,5.7690688,2642.9,2642.6,0.8022332]
[1727781257097,5.76866867,2642.9,2642.6,0.8022332]
[1727781257510,3.78372,2642.9,2642.6,0.8022332]
[1727781258494,1.98494867,2643.0,2642.7,4.5498]
[1727781258730,1.98494867,2643.0,2642.8,4.31905332]
[1727781258933,1.98494867,2643.1,2642.8,4.31905332]
[1727781259097,3.78329,2643.2,2642.8,4.31905332]
[1727781259696,3.78329,2643.2,2642.8,0.53520332]
[1727781259897,3.78344,2643.1,2642.8,0.53520332]